fUSD/lending_fUSD_20240227
["ID","MTS","AMOUNT","RATE_DAILY","PERIOD"]
[315467889,1709063433000,-2842.1925,0.000227,2]
[315467891,1709063433009,-382.8138406,0.00022714,2]
[315467994,1709063437792,-393.42436314,0.00022714,2]
[315467995,1709063437801,-1000.0,0.00022716,2]
[315467996,1709063437810,-7225.17165354,0.00022729,2]
[315467997,1709063437861,-2774.82834646,0.00022729,2]
[315467998,1709063437871,-1500.0,0.00022729,2]
[315467999,1709063437880,-1500.0,0.0002273,2]
[315468000,1709063437890,-150.0,0.00022732,2]
[315468001,1709063437899,-1500.0,0.00022735,2]
[315468002,1709063437911,-150.0,0.00022739,2]
[315468003,1709063437920,-500.0,0.0002274,2]
[315468004,1709063437930,-151.0,0.00022749,2]
[315468005,1709063437938,-976.20757407,0.0002275,2]
[315468006,1709063437948,-213.97917356,0.0002275,2]
[315468007,1709063437957,-3745.07670868,0.00022751,2]
[315468008,1709063438055,-1602.42072749,0.00022751,2]
[315468043,1709063440372,-1677.33014223,0.00022751,2]
[315468226,1709063442971,-175.68,0.0002189,2]
[315468228,1709063442981,-1289.34525771,0.00022751,2]
[315468237,1709063443097,-7574.01564899,0.00022751,2]
[315468248,1709063443282,-3617.35803169,0.00022751,2]
[315468251,1709063443295,-3007.79763153,0.00022751,2]
[315468253,1709063443307,-2556.03252377,0.00022751,2]
[315468272,1709063445848,-1297.33528681,0.00022727,2]
[315468273,1709063445860,-500.0,0.00022727,2]
[315468274,1709063445872,-727.22471319,0.00022727,2]
[315468275,1709063445881,-58.419213,0.00022751,2]
[315468276,1709063445927,-2443.75419048,0.00022751,2]
[315468277,1709063445993,-295.056,0.00022751,2]
[315468278,1709063446004,-20268.23664997,0.00022751,2]
[315468279,1709063446025,-500.0,0.00022751,2]
[315468280,1709063446087,-1141.84,0.00022751,2]
[315468281,1709063446127,-1909.98584451,0.00022751,2]
[315468282,1709063446139,-60394.11755233,0.00022751,2]
[315468283,1709063446151,-341.74739,0.00022751,2]
[315468284,1709063446192,-1618.88622349,0.00022751,2]
[315468301,1709063522127,969.44817783,0.000155,2]
[315468302,1709063595521,240.50418273,0.000101,2]
[315468303,1709063625640,151.0,0.00029736,120]
[315468305,1709063796671,-642.40605004,0.00018097,2]
[315468306,1709063796696,-155.0,0.00018098,2]
[315468307,1709063796720,-155.0,0.00018098,2]
[315468308,1709063796744,-301.33780129,0.000181,2]
[315468309,1709063888425,188.27,0.00026391,120]
[315468314,1709064198766,151.0,0.00029218,120]
[315468315,1709064390153,-201.03523792,0.000192,2]
[315468316,1709064549117,-475.11,0.00018875,2]
[315468317,1709064549138,-206.0,0.00019018,2]
[315468318,1709064549174,-298.96476208,0.000192,2]
[315468319,1709064549196,-1500.0,0.00020165,2]
[315468320,1709064549216,-3310.525517,0.00020434,2]
[315468321,1709064549244,-151.5435314,0.00020537,2]
[315468322,1709064549270,-156.0,0.00020637,2]
[315468323,1709064549291,-151.54353137,0.00020668,2]
[315468324,1709064573873,204.0,0.00019018,2]
[315468325,1709064584697,151.0,0.00029938,120]
[315468338,1709064631992,-250.0,0.00020731,2]
[315468339,1709064632002,-360.0,0.00020738,2]
[315468340,1709064632011,-318.37,0.00020741,2]
[315468341,1709064632021,-175.68,0.00020756,2]
[315468342,1709064632030,-151.54353137,0.000208,2]
[315468343,1709064632038,-181.05,0.00020808,2]
[315468344,1709064632048,-466.1,0.00020833,2]
[315468345,1709064632057,-2000.0,0.00020887,2]
[315468346,1709064632066,-150.0,0.000209,2]
[315468347,1709064632075,-250.0,0.00020912,2]
[315468348,1709064632085,-151.54353137,0.00020931,2]
[315468349,1709064632094,-300.0,0.00021004,2]
[315468350,1709064632103,-151.54353137,0.00021062,2]
[315468351,1709064632112,-160.01,0.00021077,2]
[315468352,1709064632121,-939.85,0.00021097,2]
[315468353,1709064632130,-51.50694137,0.00021101,2]
[315468354,1709064632158,-248.49305863,0.00021101,2]
[315468355,1709064632168,-150.0,0.00021101,2]
[315468356,1709064632178,-640.0,0.00021104,2]
[315468357,1709064632189,-188.27,0.00021113,2]
[315468358,1709064632199,-475.11,0.00021138,2]
[315468359,1709064632209,-619.89,0.00021166,2]
[315468360,1709064632220,-5693.62,0.00021177,2]
[315468361,1709064632230,-151.54353137,0.00021193,2]
[315468362,1709064632240,-162.05,0.00021216,2]
[315468363,1709064632249,-335.0,0.00021237,2]
[315468364,1709064632260,-500.0,0.0002126,2]
[315468365,1709064632269,-499.99,0.00021289,2]
[315468366,1709064632278,-158.32,0.00021318,2]
[315468367,1709064632288,-151.54353137,0.00021325,2]
[315468368,1709064632297,-502.1,0.0002135,2]
[315468369,1709064632307,-160.01,0.00021351,2]
[315468370,1709064632316,-150.0,0.00021448,2]
[315468371,1709064632326,-151.54353137,0.00021456,2]
[315468372,1709064632335,-154.0,0.00021537,2]
[315468373,1709064632345,-6220.773,0.00021547,2]
[315468374,1709064632354,-206.0,0.0002158,5]
[315468375,1709064632363,-151.54353137,0.00021587,2]
[315468376,1709064632373,-160.01,0.00021626,2]
[315468377,1709064632383,-1500.0,0.000217,2]
[315468378,1709064632394,-151.54353137,0.00021719,2]
[315468379,1709064632403,-152.0,0.000218,3]
[315468380,1709064632415,-4478.68549581,0.000218,2]
[315468381,1709064632425,-2525.03,0.00021832,2]
[315468382,1709064632435,-151.54353137,0.0002185,2]
[315468383,1709064632444,-8000.0,0.000219,2]
[315468384,1709064632453,-192.7167919,0.000219,2]
[315468385,1709064632462,-160.01,0.000219,2]
[315468386,1709064632471,-160.07,0.00021918,2]
[315468387,1709064632481,-154.29,0.00021918,2]
[315468388,1709064632491,-1448.8,0.00021918,2]
[315468389,1709064632501,-151.54353137,0.00021981,2]
[315468390,1709064632511,-150.0,0.00021996,2]
[315468391,1709064632521,-3435.09322343,0.00022,2]
[315468392,1709064632531,-1750.0,0.00022,3]
[315468393,1709064632540,-151.25568,0.00022,4]
[315468394,1709064632550,-500.0,0.00022,2]
[315468395,1709064632559,-177.9,0.00022,2]
[315468396,1709064632570,-158.69630458,0.000221,3]
[315468397,1709064632580,-1000.0,0.000221,3]
[315468398,1709064632589,-285.54271943,0.000221,3]
[315468400,1709064632599,-1000.0,0.00022101,3]
[315468402,1709064632608,-500.0,0.00022101,3]
[315468404,1709064632617,-151.54353137,0.00022112,2]
[315468406,1709064632626,-160.07,0.00022161,2]
[315468408,1709064632639,-160.01,0.00022175,2]
[315468410,1709064632648,-9176.0,0.000222,2]
[315468412,1709064632657,-151.54353137,0.00022244,2]
[315468414,1709064632667,-879.0304,0.00022329,2]
[315468416,1709064632679,-335.0,0.00022333,2]
[315468418,1709064632688,-1100.0206842,0.00022333,2]
[315468420,1709064632698,-150.0,0.00022349,2]
[315468422,1709064632707,-500.0,0.00022356,2]
[315468424,1709064632717,-151.54353137,0.00022375,2]
[315468426,1709064632727,-160.07,0.00022405,2]
[315468428,1709064632736,-493.10852583,0.00022427,2]
[315468430,1709064632746,-532.9229954,0.00022428,2]
[315468432,1709064632756,-36468.426,0.00022429,2]
[315468434,1709064632765,-952.5471,0.00022451,2]
[315468436,1709064632775,-167.03,0.00022461,2]
[315468438,1709064632784,-151.54353137,0.00022506,2]
[315468440,1709064632793,-274.0,0.00022516,2]
[315468442,1709064632805,-2547.93,0.00022516,2]
[315468443,1709064632814,-160.69,0.00022519,3]
[315468444,1709064632823,-482.11,0.00022519,3]
[315468445,1709064632832,-625.76695893,0.00022527,2]
[315468446,1709064632843,-287.64821022,0.00022527,2]
[315468447,1709064632853,-642.04739554,0.00022527,2]
[315468448,1709064632863,-201.03365337,0.00022527,2]
[315468449,1709064632873,-155.67647154,0.00022528,2]
[315468450,1709064632882,-76151.079,0.00022529,2]
[315468451,1709064632891,-353.91705236,0.00022548,2]
[315468452,1709064632901,-8698.2253,0.00022551,2]
[315468453,1709064632910,-1999.0,0.000226,2]
[315468455,1709064632920,-4897.68,0.00022605,2]
[315468480,1709064633146,-19915.0,0.00022605,2]
[315468482,1709064633156,-8192.0,0.00022605,2]
[315468484,1709064633168,-4112.0,0.00022605,2]
[315468486,1709064633177,-2297.0,0.00022605,2]
[315468488,1709064633186,-6262.999,0.00022605,2]
[315468490,1709064633195,-2937.0,0.00022605,2]
[315468492,1709064633204,-161.908,0.00022605,2]
[315468494,1709064633214,-3853.8943,0.00022606,2]
[315468495,1709064633223,-1581.28422203,0.00022633,6]
[315468496,1709064633233,-2471.3048793,0.00022634,6]
[315468497,1709064633243,-1232.12726547,0.00022637,6]
[315468498,1709064633252,-151.54353137,0.00022637,2]
[315468499,1709064633261,-2471.3048793,0.0002264,6]
[315468500,1709064633271,-1581.28422203,0.00022643,6]
[315468501,1709064633281,-1232.12726547,0.00022644,6]
[315468502,1709064633290,-657.84765577,0.00022646,6]
[315468503,1709064633300,-1100.0206842,0.00022647,2]
[315468504,1709064633311,-904.98540914,0.00022648,6]
[315468505,1709064633320,-160.07,0.00022648,2]
[315468506,1709064633330,-29992.256,0.00022651,2]
[315468507,1709064633339,-1581.28422203,0.00022652,6]
[315468508,1709064633348,-1732.42828894,0.00022656,2]
[315468509,1709064633357,-657.84765577,0.00022659,6]
[315468510,1709064633366,-657.84765577,0.00022664,6]
[315468511,1709064633376,-904.98540914,0.00022665,6]
[315468512,1709064633386,-2471.3048793,0.00022672,6]
[315468513,1709064633395,-1581.28422203,0.00022674,6]
[315468514,1709064633405,-153.789711,0.00022676,2]
[315468515,1709064633417,-1232.12726547,0.00022676,6]
[315468516,1709064633427,-2471.3048793,0.00022676,6]
[315468517,1709064633437,-657.84765577,0.00022679,6]
[315468518,1709064633449,-904.98540914,0.00022687,6]
[315468519,1709064633458,-1232.12726547,0.00022689,6]
[315468520,1709064633467,-200.0,0.00022694,2]
[315468521,1709064633477,-904.98540914,0.00022695,6]
[315468522,1709064633486,-200.0,0.00022697,2]
[315468523,1709064633495,-800.0,0.00022727,2]
[315468524,1709064633504,-200.0,0.00022727,2]
[315468525,1709064633514,-939.85,0.00022741,2]
[315468526,1709064633524,-2515.62,0.00022748,2]
[315468527,1709064633534,-78774.36204164,0.00022751,2]
[315468528,1709064633543,-200.0,0.00022756,2]
[315468529,1709064633553,-800.0,0.00022756,2]
[315468530,1709064633562,-200.0,0.00022756,2]
[315468531,1709064633571,-500.0,0.00022756,2]
[315468532,1709064633581,-200.0,0.00022756,2]
[315468533,1709064633590,-151.54353137,0.00022769,2]
[315468534,1709064633601,-154.66388775,0.00022769,2]
[315468535,1709064633611,-502.1,0.0002277,2]
[315468536,1709064633620,-152.05,0.0002277,2]
[315468537,1709064633630,-800.0,0.00022785,2]
[315468538,1709064633644,-200.0,0.00022785,2]
[315468539,1709064633654,-200.0,0.00022814,2]
[315468540,1709064633667,-800.0,0.00022814,2]
[315468541,1709064633677,-200.0,0.00022814,2]
[315468542,1709064633687,-500.0,0.00022814,2]
[315468543,1709064633697,-1732.4282889,0.00022834,2]
[315468544,1709064633707,-327.0,0.00022847,2]
[315468545,1709064633717,-206.0,0.0002285,2]
[315468546,1709064633729,-628.75617401,0.0002287,2]
[315468547,1709064633740,-500.0,0.00022877,2]
[315468548,1709064633750,-628.75617401,0.00022885,2]
[315468549,1709064633759,-150.0,0.00022887,2]
[315468550,1709064633769,-152.05,0.00022892,2]
[315468551,1709064633779,-160.07,0.00022892,2]
[315468552,1709064633788,-529.32649655,0.00022898,2]
[315468553,1709064633798,-4172.9774912,0.00022899,2]
[315468554,1709064633808,-2573.46,0.000229,2]
[315468555,1709064633818,-223366.54940599,0.000229,4]
[315468556,1709064633879,-255.0372575,0.000229,4]
[315468557,1709064633891,-896.56004506,0.000229,4]
[315468558,1709064633903,-3244.17903922,0.000229,4]
[315468559,1709064633916,-2100.02266968,0.000229,4]
[315468560,1709064633928,-351.18557078,0.000229,4]
[315468561,1709064633937,-8676.31257294,0.000229,2]
[315468562,1709064633946,-255.58782804,0.000229,2]
[315468563,1709064633955,-151.54353137,0.000229,2]
[315468564,1709064633964,-151.28756025,0.000229,2]
[315468565,1709064633973,-151.0,0.000229,7]
[315468566,1709064633982,-1107.0,0.000229,2]
[315468567,1709064633992,-158.50565445,0.000229,2]
[315468568,1709064634001,-5000.0,0.000229,2]
[315468569,1709064634010,-170.221843,0.000229,7]
[315468570,1709064634020,-628.75617401,0.000229,2]
[315468571,1709064634029,-172.00521633,0.000229,2]
[315468572,1709064634038,-151.0,0.000229,7]
[315468573,1709064634047,-300.169175,0.000229,7]
[315468574,1709064634056,-241.46472624,0.000229,2]
[315468575,1709064634065,-300.169175,0.000229,7]
[315468576,1709064634075,-151.0,0.000229,7]
[315468577,1709064634085,-778.36017649,0.000229,6]
[315468578,1709064634093,-334.06688431,0.000229,2]
[315468579,1709064634102,-1059.80753188,0.000229,2]
[315468580,1709064634111,-151.28756003,0.00022918,2]
[315468581,1709064634121,-150.0,0.00022926,2]
[315468582,1709064634131,-250.0,0.00022926,2]
[315468583,1709064634140,-150.871,0.00022926,2]
[315468584,1709064634149,-206.76338398,0.00022928,2]
[315468585,1709064634159,-151.28756003,0.00022935,2]
[315468586,1709064634170,-209.302,0.00022938,2]
[315468587,1709064634179,-150.467,0.00022938,2]
[315468588,1709064634188,-150.147,0.00022938,2]
[315468589,1709064634198,-1496.846,0.00022938,2]
[315468590,1709064634207,-2698.089,0.00022938,2]
[315468591,1709064634216,-457.263,0.00022938,2]
[315468592,1709064634225,-956.0,0.00022938,2]
[315468593,1709064634234,-534.0,0.00022938,2]
[315468594,1709064634243,-746.383,0.00022938,2]
[315468595,1709064634252,-23.61787587,0.00022938,2]
[315468596,1709064634265,-578.40712413,0.00022938,2]
[315468597,1709064634274,-1231.0,0.00022938,2]
[315468598,1709064634283,-1258.0,0.00022938,2]
[315468599,1709064634292,-283.162,0.00022938,2]
[315468600,1709064634301,-1966.023,0.00022938,2]
[315468601,1709064634311,-876.301,0.00022938,2]
[315468602,1709064634320,-1024.741,0.00022938,2]
[315468603,1709064634329,-578.625,0.00022938,2]
[315468604,1709064634338,-277.0,0.00022938,2]
[315468605,1709064634349,-338.0,0.00022938,2]
[315468606,1709064634358,-340.377,0.00022938,2]
[315468607,1709064634367,-1148.753,0.00022938,2]
[315468608,1709064634376,-2931.14,0.00022938,2]
[315468609,1709064634386,-1454.0,0.00022938,2]
[315468610,1709064634395,-2454.684,0.00022938,2]
[315468611,1709064634405,-217.547,0.00022938,2]
[315468612,1709064634416,-162.0,0.00022938,2]
[315468613,1709064634425,-433.116,0.00022938,2]
[315468614,1709064634435,-389.295,0.00022938,2]
[315468615,1709064634444,-151.0,0.00022938,7]
[315468616,1709064634454,-192.837379,0.00022938,7]
[315468617,1709064634464,-151.0,0.00022938,7]
[315468618,1709064634473,-300.169175,0.00022938,7]
[315468619,1709064634482,-300.169175,0.00022938,7]
[315468620,1709064634491,-151.0,0.00022938,7]
[315468621,1709064634500,-151.28756003,0.00022953,2]
[315468622,1709064634510,-176.63,0.00022957,2]
[315468623,1709064634519,-1569.169851,0.00022959,2]
[315468624,1709064634531,-11406.163912,0.00022959,2]
[315468625,1709064634540,-4912.894324,0.00022959,2]
[315468626,1709064634549,-151.0,0.00022959,3]
[315468627,1709064634559,-151.0,0.00022959,7]
[315468628,1709064634568,-163.362505,0.00022959,7]
[315468629,1709064634577,-151.0,0.00022959,7]
[315468630,1709064634586,-151.0,0.00022959,7]
[315468631,1709064634595,-151.0,0.00022959,7]
[315468632,1709064634604,-10414.81135779,0.0002297,2]
[315468633,1709064634616,-45140.18864221,0.0002297,2]
[315468634,1709064634625,-151.28756003,0.0002297,2]
[315468635,1709064634635,-1928.57910423,0.00022973,2]
[315468636,1709064634644,-2339.15886339,0.00022973,2]
[315468637,1709064634654,-2350.92891813,0.00022973,2]
[315468638,1709064634666,-13218.3364723,0.00022973,2]
[315468639,1709064634675,-151.0,0.00022973,7]
[315468640,1709064634686,-7447.6902671,0.00022973,2]
[315468641,1709064634695,-4772.03514839,0.00022973,2]
[315468642,1709064634704,-151.087681,0.00022973,7]
[315468643,1709064634714,-300.169175,0.00022973,7]
[315468644,1709064634723,-300.169175,0.00022973,7]
[315468645,1709064634732,-151.0,0.00022973,7]
[315468646,1709064634742,-151.28756003,0.00022988,2]
[315468647,1709064634752,-8676.31257291,0.00022991,2]
[315468648,1709064634761,-1982.90501339,0.00022998,2]
[315468649,1709064634771,-42559.79672376,0.00022998,2]
[315468650,1709064634780,-151.0,0.00022998,7]
[315468651,1709064634790,-151.0,0.00022998,7]
[315468652,1709064634799,-204.543572,0.00022998,7]
[315468653,1709064634808,-150.01,0.00022998,2]
[315468654,1709064634817,-151.0,0.00022999,3]
[315468655,1709064634826,-300.0,0.00022999,2]
[315468656,1709064634835,-300.0,0.00022999,2]
[315468657,1709064634844,-300.0,0.00022999,2]
[315468658,1709064634853,-225.84474369,0.00022999,2]
[315468659,1709064634863,-1002.0901,0.00022999,2]
[315468660,1709064634872,-37117.19867287,0.00023,2]
[315468661,1709064635250,-70459.64244743,0.00023,2]
[315468662,1709064635260,-2437.4631776,0.00023,2]
[315468663,1709064635269,-630.31619451,0.00023,2]
[315468664,1709064635279,-997.0,0.00023,6]
[315468665,1709064635288,-677.73945384,0.00023,2]
[315468666,1709064635297,-707.0,0.00023,2]
[315468667,1709064635307,-153860.09066779,0.00023,2]
[315468668,1709064635317,-5000.0,0.00023,2]
[315468669,1709064635326,-103986.33078095,0.00023,2]
[315468670,1709064635335,-80477.11909723,0.00023,2]
[315468671,1709064635348,-439.62247958,0.00023,2]
[315468672,1709064635359,-1527.22007561,0.00023,2]
[315468673,1709064635374,-523.82249628,0.00023,2]
[315468674,1709064635399,-346.211,0.00022605,2]
[315468675,1709064635409,-262.18143828,0.00023,2]
[315468676,1709064635426,-1858.93303644,0.00023,2]
[315468677,1709064635442,-4876.74178733,0.00023,2]
[315468678,1709064635705,204.0,0.00019018,2]
[315468684,1709064637942,-764.96737231,0.00022605,2]
[315468685,1709064638009,-276.03262769,0.00022605,2]
[315468686,1709064638019,-196.47806674,0.000229,2]
[315468687,1709064638029,-250.56237752,0.000229,2]
[315468688,1709064638038,-935.1557054,0.000229,2]
[315468689,1709064638048,-235054.76989632,0.00022999,4]
[315468690,1709064638058,-74727.80622864,0.00023,2]
[315468691,1709064638068,-5330.0002,0.00023,2]
[315468692,1709064638077,-586.79552556,0.00023,2]
[315468693,1709064638086,-997.0,0.00023,6]
[315468694,1709064638096,-1587.459448,0.00023,2]
[315468695,1709064638106,-1099.0,0.00023,6]
[315468696,1709064638115,-707.0,0.00023,2]
[315468697,1709064638125,-26829.39328821,0.00023,2]
[315468698,1709064638135,-151.0,0.00023,7]
[315468699,1709064638144,-151.0,0.00023,7]
[315468700,1709064638154,-151.0,0.00023,7]
[315468701,1709064638164,-227.460041,0.00023,7]
[315468702,1709064638174,-151.0,0.00023,3]
[315468703,1709064638183,-151.0,0.00023,3]
[315468704,1709064638193,-276.285794,0.00023,3]
[315468705,1709064638203,-151.0,0.00023,7]
[315468706,1709064638212,-151.0,0.00023,7]
[315468707,1709064638222,-151.0,0.00023,7]
[315468708,1709064638232,-151.0,0.00023,7]
[315468709,1709064638241,-151.0,0.00023,7]
[315468710,1709064638251,-151.0,0.00023,7]
[315468711,1709064638260,-270.45486,0.00023,7]
[315468712,1709064638269,-3000.0,0.00023,2]
[315468714,1709064638279,-2205596.18827828,0.00023,2]
[315468716,1709064638288,-268.229501,0.00023,2]
[315468717,1709064638297,-2464.92839468,0.00023,2]
[315468718,1709064638307,-1000.0,0.00023,2]
[315468719,1709064638316,-300.169175,0.00023,7]
[315468720,1709064638325,-300.169175,0.00023,7]
[315468721,1709064638334,-300.169175,0.00023,7]
[315468723,1709064638344,-300.169175,0.00023,7]
[315468725,1709064638353,-300.169175,0.00023,7]
[315468727,1709064638363,-300.169175,0.00023,7]
[315468729,1709064638373,-300.169175,0.00023,7]
[315468731,1709064638382,-300.169175,0.00023,7]
[315468733,1709064638392,-300.169175,0.00023,7]
[315468734,1709064638403,-300.169175,0.00023,7]
[315468735,1709064638413,-300.169175,0.00023,7]
[315468736,1709064638425,-300.169175,0.00023,7]
[315468738,1709064638435,-151.0,0.00023,7]
[315468740,1709064638445,-178.67038,0.00023,7]
[315468741,1709064638454,-275.40895304,0.00023,2]
[315468743,1709064638463,-275.40895304,0.00023,2]
[315468745,1709064638473,-275.40895304,0.00023,2]
[315468746,1709064638482,-275.40895304,0.00023,2]
[315468747,1709064638491,-151.28756003,0.00023005,2]
[315468748,1709064638501,-3000.0,0.0002301,2]
[315468749,1709064638511,-1732.4282889,0.00023011,2]
[315468750,1709064638520,-152.05,0.00023014,2]
[315468751,1709064638530,-500.0,0.00023014,2]
[315468752,1709064638540,-155.9,0.00023014,2]
[315468753,1709064638550,-3000.0,0.0002302,2]
[315468754,1709064638560,-151.28756003,0.00023023,2]
[315468755,1709064638569,-3000.0,0.0002303,2]
[315468756,1709064638580,-206.0,0.0002304,2]
[315468757,1709064638590,-3000.0,0.0002304,2]
[315468758,1709064638600,-151.28756003,0.0002304,2]
[315468759,1709064638611,-3000.0,0.0002305,2]
[315468760,1709064638621,-173.302818,0.00023053,2]
[315468761,1709064638632,-153.789711,0.00023053,2]
[315468762,1709064638643,-151.28756003,0.00023058,2]
[315468763,1709064638654,-3000.0,0.0002306,2]
[315468764,1709064638669,-3000.0,0.0002307,2]
[315468765,1709064638680,-151.28756003,0.00023075,2]
[315468766,1709064638690,-3000.0,0.0002308,2]
[315468767,1709064638701,-8676.31257291,0.00023082,2]
[315468768,1709064638712,-3000.0,0.0002309,2]
[315468769,1709064638722,-151.28756003,0.00023093,2]
[315468770,1709064638732,-3000.0,0.000231,2]
[315468771,1709064638742,-1000.0,0.000231,2]
[315468772,1709064638752,-3000.0,0.0002311,2]
[315468773,1709064638762,-151.28756003,0.00023111,2]
[315468774,1709064638772,-3000.0,0.0002312,2]
[315468775,1709064638782,-151.28756003,0.00023128,2]
[315468776,1709064638792,-17624.98586683,0.0002313,2]
[315468777,1709064638802,-151.0,0.0002313,7]
[315468778,1709064638812,-3000.0,0.0002313,2]
[315468779,1709064638821,-152.05,0.00023135,2]
[315468780,1709064638831,-160.07,0.00023135,2]
[315468781,1709064638841,-3000.0,0.0002314,2]
[315468782,1709064638851,-151.28756003,0.00023146,2]
[315468783,1709064638861,-255.587828,0.0002315,2]
[315468784,1709064638870,-5911.158637,0.0002315,2]
[315468785,1709064638879,-778.36017647,0.0002315,7]
[315468786,1709064638889,-500.0,0.00023151,2]
[315468787,1709064638899,-151.28756003,0.00023163,2]
[315468788,1709064638910,-8676.31257291,0.00023173,2]
[315468789,1709064638920,-300.169175,0.00023173,7]
[315468790,1709064638929,-300.169179,0.00023173,7]
[315468791,1709064638938,-151.28756003,0.00023181,2]
[315468792,1709064638948,-1732.4282889,0.00023189,2]
[315468793,1709064638957,-151.28756003,0.00023198,2]
[315468794,1709064638968,-1000.0,0.000232,2]
[315468795,1709064638977,-210.0,0.00023211,2]
[315468796,1709064638986,-151.28756003,0.00023216,2]
[315468797,1709064638996,-207.0,0.0002323,2]
[315468798,1709064639006,-206.0,0.0002323,2]
[315468799,1709064639015,-151.28756003,0.00023233,2]
[315468800,1709064639025,-156.413216,0.00023242,2]
[315468801,1709064639034,-218.212217,0.00023242,2]
[315468802,1709064639043,-416.137804,0.00023242,2]
[315468803,1709064639053,-156.413216,0.00023242,2]
[315468804,1709064639062,-615.158844,0.00023242,2]
[315468805,1709064639071,-1569.169851,0.00023242,2]
[315468806,1709064639081,-11406.163912,0.00023242,2]
[315468807,1709064639091,-4912.894324,0.00023242,2]
[315468808,1709064639100,-151.28756003,0.00023251,2]
[315468809,1709064639110,-152.05,0.00023257,2]
[315468810,1709064639119,-1100.02068421,0.00023261,2]
[315468811,1709064639130,-8676.31257291,0.00023264,2]
[315468812,1709064639139,-151.28756003,0.00023268,2]
[315468813,1709064639148,-151.28756003,0.00023286,2]
[315468814,1709064639158,-500.0,0.00023288,2]
[315468815,1709064639167,-348.0,0.000233,2]
[315468816,1709064639176,-874.0,0.000233,2]
[315468817,1709064639186,-8000.0,0.000233,2]
[315468818,1709064639195,-1000.0,0.000233,2]
[315468819,1709064639204,-151.28756003,0.00023304,2]
[315468820,1709064639214,-150.0,0.00023313,2]
[315468821,1709064639223,-218.478455,0.0002332,2]
[315468822,1709064639232,-151.0,0.0002332,2]
[315468823,1709064639241,-151.28756003,0.00023321,2]
[315468824,1709064639251,-360.0,0.00023331,2]
[315468825,1709064639260,-151.28756003,0.00023339,2]
[315468826,1709064639269,-8676.31257291,0.00023355,2]
[315468827,1709064639279,-151.28756003,0.00023356,2]
[315468828,1709064639288,-1732.4282889,0.00023367,2]
[315468829,1709064639298,-151.28756003,0.00023374,2]
[315468830,1709064639307,-152.05,0.00023379,2]
[315468831,1709064639316,-160.07,0.00023379,2]
[315468832,1709064639326,-151.28756003,0.00023391,2]
[315468833,1709064639335,-255.587828,0.000234,2]
[315468834,1709064639345,-151.0,0.000234,7]
[315468835,1709064639356,-172.00521633,0.000234,2]
[315468836,1709064639365,-241.46472624,0.000234,2]
[315468837,1709064639375,-334.0668843,0.000234,2]
[315468838,1709064639385,-778.36017647,0.000234,7]
[315468839,1709064639394,-1059.80753186,0.000234,2]
[315468840,1709064639403,-475.11,0.00023402,2]
[315468841,1709064639413,-151.28756003,0.00023409,2]
[315468842,1709064639426,-207.0,0.0002342,2]
[315468843,1709064639436,-205.0,0.0002342,2]
[315468844,1709064639446,-206.0,0.0002342,2]
[315468845,1709064639457,-208.0,0.0002342,2]
[315468846,1709064639466,-150.0,0.00023422,2]
[315468847,1709064639476,-500.0,0.00023425,2]
[315468848,1709064639486,-151.28756003,0.00023426,2]
[315468849,1709064639496,-335.0,0.00023429,2]
[315468850,1709064639505,-173.302818,0.00023431,2]
[315468851,1709064639515,-153.789711,0.00023431,2]